bitfinex/quotes_ETHUSD_20220105
["timestamp","ask_amount","ask_price","bid_price","bid_amount"]
[1641422030842,5.80687896,3447.1,3445.9,0.00284212]
[1641422031040,5.80687896,3447.1,3445.4,0.06957876]
[1641422031041,5.80687896,3447.1,3445.4,0.00113685]
[1641422031241,0.00625266,3447.0,3445.4,0.00113685]
[1641422031440,5.8029,3446.9,3445.5,0.00227369]
[1641422031646,5.80858424,3446.9,3445.5,0.00227369]
[1641422031844,0.00511581,3446.8,3445.5,0.00227369]
[1641422032143,5.80744739,3446.7,3445.5,0.00227369]
[1641422032341,0.01248905,3446.4,3445.5,0.00227369]
[1641422032541,5.8029,3446.3,3445.5,0.00227369]
[1641422032742,5.80517369,3446.3,3443.8,0.72544]
[1641422032949,0.00397896,3446.2,3443.8,0.72544]
[1641422033146,5.8029,3446.1,3444.5,0.00568424]
[1641422033347,5.80631054,3446.1,3444.5,0.00568424]
[1641422033553,0.00284211,3446.0,3444.5,0.00568424]
[1641422033793,5.8029,3445.9,3443.7,0.01213957]
[1641422033994,5.8029,3445.9,3442.0,0.14993316]
[1641422033995,0.01253233,3444.7,3442.0,0.16287061]
[1641422034198,5.8029,3444.6,3443.8,0.00397896]
[1641422034393,5.8029,3444.6,3442.1,0.01364216]
[1641422034594,5.8029,3444.6,3440.8,2.90247]
[1641422034595,1.13819997,3444.5,3441.2,0.70610012]
[1641422034797,0.01294823,3443.9,3441.2,0.70610012]
[1641422034994,5.8029,3444.4,3441.3,0.00454739]
[1641422034995,0.0123871,3443.1,3441.3,0.00454739]
[1641422035297,1.43819997,3444.5,3440.6,0.00852635]
[1641422035298,0.01231074,3442.4,3440.6,0.00852635]
[1641422035497,5.8029,3442.3,3440.5,2.96842957]
[1641422035698,0.01234661,3442.1,3440.5,2.957e-05]
[1641422035897,5.8029,3442.0,3439.7,1.45271]
[1641422036099,5.81085793,3442.0,3439.7,1.45271]
[1641422036301,0.0073895,3441.9,3439.8,0.00454739]
[1641422036503,5.8029,3441.8,3439.8,0.00454739]
[1641422036704,5.8029,3441.8,3439.7,1.45271]
[1641422036705,5.80972108,3441.8,3439.7,1.45271]
[1641422036901,0.01080005,3441.7,3439.7,1.45271]
[1641422037102,5.8029,3441.6,3439.0,0.72661]
[1641422037302,5.8029,3441.6,3438.7,2.59691]
[1641422037303,0.01276853,3441.3,3438.7,2.59691]
[1641422037560,5.8029,3441.2,3439.1,0.00397896]
[1641422037752,5.81085793,3441.2,3439.1,0.00397896]
[1641422037953,0.01207126,3440.3,3438.9,0.00511581]
[1641422038152,0.0073895,3441.1,3438.9,0.00511581]
[1641422038153,5.8029,3440.2,3438.9,0.00511581]
[1641422038356,5.80517369,3440.2,3438.9,0.00511581]
[1641422038554,0.00170527,3440.1,3438.9,0.00511581]
[1641422038752,0.00170527,3440.1,3438.3,0.73010663]
[1641422038753,0.00170527,3440.1,3438.6,0.00682108]
[1641422038952,0.00113685,3440.0,3438.6,0.00682108]
[1641422039164,5.75403685,3440.2,3438.4,0.00795793]
[1641422039356,5.75403685,3440.2,3437.2,2.90643]
[1641422039357,5.75403685,3440.2,3438.7,0.00363765]
[1641422039557,5.75403685,3440.2,3438.4,0.00113685]
[1641422039558,3.0,3439.3,3438.4,0.00113685]
[1641422039754,8.56881488,3444.9,3436.2,11.56995431]
[1641422039957,0.74589894,3445.3,3445.0,594.18972955]
[1641422040153,0.74589894,3445.3,3445.0,510.28970557]
[1641422040154,6.01207526,3445.1,3445.0,510.28970557]
[1641422040353,6.01207526,3445.1,3445.0,459.16643794]
[1641422040354,41.76928467,3445.1,3445.0,459.16643794]
[1641422040556,89.90801269,3445.1,3445.0,411.12448678]
[1641422040756,89.72808198,3445.1,3445.0,369.04500416]
[1641422040956,89.72808198,3445.1,3445.0,298.8184074]
[1641422040957,55.38195358,3445.1,3445.0,298.8184074]
[1641422041155,55.38195358,3445.1,3445.0,265.01189338]
[1641422041156,25.72653561,3445.1,3445.0,265.01189338]
[1641422041389,42.55602157,3445.1,3445.0,144.94105444]
[1641422041594,0.06554899,3443.8,3441.2,0.01236032]
[1641422041894,0.727106,3444.5,3437.1,0.01239252]
[1641422041895,3.0,3441.7,3437.1,0.01239252]
[1641422042090,3.0,3439.2,3436.6,0.01258141]
[1641422042290,3.075344,3437.6,3435.1,1.4545]
[1641422042492,3.075344,3437.6,3435.0,0.4157]
[1641422042493,0.31764089,3437.5,3435.0,0.4157]
[1641422042692,3.39298489,3437.5,3435.0,0.4157]
[1641422042892,3.39298489,3437.4,3435.0,0.4157]
[1641422043092,0.31764089,3437.3,3435.1,0.00170527]
[1641422043293,56.58966573,3437.0,3435.1,0.00170527]
[1641422043492,56.58966573,3437.0,3434.5,0.72758]
[1641422043493,0.0122392,3435.9,3434.5,0.72758]
[1641422043892,3.07932296,3435.8,3434.9,0.00113685]
[1641422044094,0.84809411,3435.7,3434.9,0.00113685]
[1641422044295,4.92684865,3435.7,3434.9,0.00113685]
[1641422044499,0.85093622,3435.6,3434.9,0.00113685]
[1641422044694,0.01272615,3435.5,3434.4,0.00397897]
[1641422044895,0.86309395,3435.5,3434.4,0.00397897]
[1641422045139,0.671763,3435.4,3434.4,0.00397897]
[1641422045340,4.26099122,3435.3,3434.4,0.00568424]
[1641422045542,1.26990378,3435.2,3433.8,0.18550773]
[1641422045743,1.26990378,3435.2,3433.8,0.08550773]
[1641422045744,3.60169748,3435.1,3433.8,0.08550773]
[1641422045944,1.26990378,3435.0,3433.9,0.00284211]
[1641422046143,0.01221026,3434.4,3433.9,0.00284211]
[1641422046345,3.60169748,3434.3,3433.9,0.41854211]
[1641422046545,5.530895,3434.3,3433.9,0.41854211]
[1641422046747,0.65929374,3434.2,3433.8,0.05404984]
[1641422046947,3.60169748,3434.1,3433.8,0.05404984]
[1641422047150,3.60169748,3434.1,3432.7,0.01246228]
[1641422047151,4.56100581,3434.1,3432.7,0.01246228]
[1641422047345,0.65929374,3434.0,3429.6,3.0514]
[1641422047545,0.65929374,3434.0,3432.8,0.00625266]
[1641422047546,1.61746523,3434.0,3432.8,0.00625266]
[1641422047745,4.55986897,3433.9,3432.8,0.68412266]
[1641422048048,0.65929374,3433.8,3432.9,0.00568424]
[1641422048245,3.60169748,3433.7,3432.9,0.00568424]
[1641422048446,4.55986897,3433.7,3432.3,1.40347424]
[1641422048647,0.66327271,3433.6,3432.8,0.7279]
[1641422048895,0.66327271,3433.6,3432.4,0.00284212]
[1641422048896,3.60169748,3433.5,3432.4,0.00284212]
[1641422049098,5.3310363,3433.5,3432.4,0.00284212]
[1641422049295,0.66213586,3433.4,3431.7,0.00682108]
[1641422049498,3.60169748,3433.3,3431.7,0.00682108]
[1641422049703,5.32989945,3433.3,3431.7,0.00682108]
[1641422049996,5.32989945,3433.3,3431.8,0.0041937]
[1641422049997,0.66099901,3433.2,3431.8,0.0041937]
[1641422050199,3.60169748,3433.1,3431.8,0.0041937]
[1641422050400,4.89145262,3433.1,3431.9,0.0073895]
[1641422050600,0.21099901,3433.0,3431.9,0.0073895]
[1641422050797,3.60169748,3432.9,3432.3,0.01226402]
[1641422051000,3.60169748,3432.9,3431.9,0.0073895]
[1641422051001,0.69383616,3432.8,3431.9,0.0073895]
[1641422051199,0.69383616,3432.8,3432.4,0.00454739]
[1641422051200,3.60169748,3432.7,3432.4,0.00454739]
[1641422051403,0.16099901,3432.3,3431.9,0.0073895]
[1641422051601,3.60169748,3432.2,3431.9,0.0073895]
[1641422051799,3.60169748,3432.2,3431.6,0.4250832]
[1641422051800,4.29553364,3432.2,3431.6,0.4250832]
[1641422051999,4.29553364,3432.2,3431.6,0.3250832]
[1641422052000,0.85597201,3432.1,3431.6,0.3250832]
[1641422052303,4.45653265,3432.0,3431.6,0.20597885]
[1641422052548,0.69383616,3431.9,3431.6,0.20597885]
[1641422052751,3.60169748,3431.8,3431.6,0.20597885]
[1641422052957,0.59325821,3431.7,3431.6,0.20597885]
[1641422053155,4.3559547,3431.7,3431.6,0.20597885]
[1641422053654,4.3489547,3431.7,3431.6,0.20597885]
[1641422054959,4.6398547,3431.7,3431.6,0.20597885]
[1641422055758,4.47885569,3431.7,3431.6,0.20597885]
[1641422055957,4.47885569,3431.7,3431.6,0.04497885]
[1641422056402,3.89259748,3431.7,3431.6,0.04497885]
[1641422057607,3.04413113,3435.2,3435.0,978.42249513]
[1641422057805,0.72861,3435.5,3435.0,972.59465513]
[1641422058003,4.25697171,3435.1,3435.0,972.42508813]
[1641422058204,8.83443071,3435.1,3435.0,972.42508813]
[1641422058403,8.83443071,3435.1,3435.0,966.59658813]
[1641422058404,15.32984226,3435.1,3435.0,966.59658813]
[1641422058605,15.30202925,3435.1,3435.0,966.4480881]
[1641422058804,20.80608025,3435.1,3435.0,960.4139501]
[1641422059004,20.50700525,3435.1,3435.0,960.35281718]
[1641422059203,21.44305626,3435.1,3435.0,960.11958854]
[1641422059403,18.44145626,3435.1,3435.0,954.29111854]
[1641422059605,19.97992426,3435.1,3435.0,952.32651154]
[1641422059806,19.98632426,3435.1,3435.0,952.32651154]
[1641422060066,19.98712426,3435.1,3435.0,946.49720154]
[1641422060358,19.97592426,3435.1,3435.0,940.62300854]
[1641422060556,20.0006157,3435.1,3435.0,940.62300854]
[1641422060758,22.0022157,3435.1,3435.0,934.03681484]
[1641422060960,20.68552426,3435.1,3435.0,927.10782484]
[1641422061159,20.75667325,3435.1,3435.0,926.90782484]
[1641422061357,20.78376469,3435.1,3435.0,921.07839484]
[1641422061561,20.76787325,3435.1,3435.0,906.68203928]
[1641422061758,20.55575125,3435.1,3435.0,901.99978528]
[1641422061958,20.57724269,3435.1,3435.0,880.42795962]
[1641422062158,19.02164269,3435.1,3435.0,880.42795962]
[1641422062355,19.00095125,3435.1,3435.0,874.53929562]
[1641422062556,19.01924269,3435.1,3435.0,862.87970562]
[1641422062758,20.5834243,3435.1,3435.0,862.87970562]
[1641422062960,20.5834243,3435.1,3435.0,845.89094562]
[1641422062961,20.35516171,3435.1,3435.0,845.89094562]
[1641422063155,19.49602715,3435.1,3435.0,845.01271962]
[1641422063357,19.49602715,3435.1,3435.0,839.18293962]
[1641422063558,21.07693571,3435.1,3435.0,832.04128962]
[1641422063800,21.09922715,3435.1,3435.0,832.00021362]
[1641422064002,21.10482715,3435.1,3435.0,826.17014362]
[1641422064201,21.10482715,3435.1,3435.0,822.14804327]
[1641422064403,21.07773571,3435.1,3435.0,822.14804327]
[1641422064603,20.15448571,3435.1,3435.0,809.68458327]
[1641422064808,20.45527715,3435.1,3435.0,807.31728327]
[1641422065011,37.41767615,3435.1,3435.0,803.57534227]
[1641422065207,68.70167471,3435.1,3435.0,794.8817007]
[1641422065410,51.30783671,3435.1,3435.0,789.87436515]
[1641422065611,51.30783671,3435.1,3435.0,771.32044515]
[1641422065612,59.84770615,3435.1,3435.0,771.32044515]
[1641422065807,64.10053471,3435.1,3435.0,768.43212155]
[1641422066007,78.43942871,3435.1,3435.0,734.70555604]
[1641422066209,79.40176115,3435.1,3435.0,723.66140804]
[1641422066407,80.87482771,3435.1,3435.0,708.77439342]
[1641422066606,83.26768091,3435.1,3435.0,682.26816027]
[1641422066808,83.26768091,3435.1,3435.0,679.34778077]
[1641422066809,93.51045896,3435.1,3435.0,679.34778077]
[1641422067107,122.16257582,3435.1,3435.0,653.50697932]
[1641422067308,109.01459026,3435.1,3435.0,650.60593695]
[1641422067553,79.61403384,3435.1,3435.0,638.82519795]
[1641422067752,80.4800934,3435.1,3435.0,577.72339399]
[1641422067951,79.69849283,3435.1,3435.0,576.066583]
[1641422068153,79.69849283,3435.1,3435.0,543.33489438]
[1641422068154,118.78113825,3435.1,3435.0,543.33489438]
[1641422068352,129.00196382,3435.1,3435.0,536.88562183]
[1641422068553,131.09511126,3435.1,3435.0,514.57789795]
[1641422068758,123.72220807,3435.1,3435.0,482.54898095]
[1641422068953,123.75511663,3435.1,3435.0,467.66438073]
[1641422069153,144.54937707,3435.1,3435.0,455.79794073]
[1641422069353,144.54937707,3435.1,3435.0,429.81713872]
[1641422069354,173.40897565,3435.1,3435.0,429.81713872]
[1641422069553,166.11412221,3435.1,3435.0,421.33816546]
[1641422069754,119.93239265,3435.1,3435.0,409.67227546]
[1641422069954,71.36076365,3435.1,3435.0,402.98596691]
[1641422070154,95.78701621,3435.1,3435.0,388.4313685]
[1641422070356,98.54722521,3435.1,3435.0,379.4945435]
[1641422070558,111.22335407,3435.1,3435.0,363.92345608]
[1641422070760,82.55541663,3435.1,3435.0,358.09051608]
[1641422070954,72.46422502,3435.1,3435.0,350.48192308]
[1641422071154,88.26862146,3435.1,3435.0,339.39040691]
[1641422071408,66.64960301,3435.1,3435.0,331.73132191]
[1641422071611,55.80025746,3435.1,3435.0,328.64986209]
[1641422071810,61.45484546,3435.1,3435.0,321.33405988]
[1641422072010,53.55555601,3435.1,3435.0,321.01886888]
[1641422072211,63.36761446,3435.1,3435.0,321.01886888]
[1641422072407,60.16535046,3435.1,3435.0,315.12816888]
[1641422072609,60.16535046,3435.1,3435.0,314.39905888]
[1641422072610,66.93671901,3435.1,3435.0,314.39905888]
[1641422072808,58.29612776,3435.1,3435.0,308.50187989]
[1641422073010,58.97705677,3435.1,3435.0,308.50187989]
[1641422073210,57.47026333,3435.1,3435.0,308.39521589]
[1641422073413,59.54514777,3435.1,3435.0,295.02717689]
[1641422073610,60.99649072,3435.1,3435.0,275.56346241]
[1641422073811,58.11147928,3435.1,3435.0,269.73084241]
[1641422074012,56.30693428,3435.1,3435.0,269.73084241]
[1641422074211,57.06652072,3435.1,3435.0,251.25209614]
[1641422074513,67.10600328,3435.1,3435.0,244.42036614]
[1641422074710,61.13343028,3435.1,3435.0,243.16345742]
[1641422074911,75.18150671,3435.1,3435.0,218.16791778]
[1641422075145,73.51387288,3435.1,3435.0,218.13551778]
[1641422075343,62.90132488,3435.1,3435.0,182.92188985]
[1641422075545,64.72962232,3435.1,3435.0,182.92188985]
[1641422075746,57.5680602,3435.1,3435.0,182.92188985]
[1641422076050,61.21939164,3435.1,3435.0,157.09626587]
[1641422076247,63.98018664,3435.1,3435.0,157.09626587]
[1641422076449,70.5811622,3435.1,3435.0,140.52682138]
[1641422076655,70.0845892,3435.1,3435.0,138.62352138]
[1641422076851,68.91138862,3435.1,3435.0,122.14554787]
[1641422077149,70.88343518,3435.1,3435.0,106.26568114]
[1641422077348,66.45323118,3435.1,3435.0,106.26568114]
[1641422077548,59.37273962,3435.1,3435.0,100.41288114]
[1641422077750,61.69807762,3435.1,3435.0,83.57336965]
[1641422077950,60.52000218,3435.1,3435.0,77.14848878]
[1641422078149,67.83038363,3435.1,3435.0,66.70889628]
[1641422078351,61.67377762,3435.1,3435.0,66.70889628]
[1641422078555,59.68973518,3435.1,3435.0,60.87781628]
[1641422078800,57.72920863,3435.1,3435.0,50.8460111]
[1641422078998,47.58582919,3435.1,3435.0,45.0150411]
[1641422079198,59.67832219,3435.1,3435.0,45.0150411]
[1641422079401,60.79852163,3435.1,3435.0,31.22029208]
[1641422079599,60.49239119,3435.1,3435.0,25.38946208]
[1641422079799,64.87315819,3435.1,3435.0,15.33550666]
[1641422079998,67.88203963,3435.1,3435.0,9.50412666]
[1641422080200,65.07081919,3435.1,3435.0,9.50412666]
[1641422080399,69.76933919,3435.1,3433.1,6.90102124]
[1641422080601,3.0,3433.2,3433.1,6.90102124]
[1641422080802,8.73443071,3433.2,3433.0,1000.0]
[1641422081000,1.3,3433.1,3433.0,997.80245343]
[1641422081204,7.23074323,3433.1,3433.0,997.80245343]
[1641422081402,10.20925179,3433.1,3433.0,997.80245343]
[1641422081603,14.27122149,3433.1,3433.0,997.80245343]
[1641422081802,11.22853724,3433.1,3433.0,997.80573463]
[1641422082002,11.21573724,3433.1,3433.0,997.80573463]
[1641422082202,11.27888623,3433.1,3433.0,997.67547836]
[1641422082402,11.29168623,3433.1,3433.0,997.67547836]
[1641422082645,11.28448623,3433.1,3433.0,997.67547836]
[1641422082848,9.98768623,3433.1,3433.0,997.67547836]
[1641422083046,12.90116367,3433.1,3433.0,997.67547836]
[1641422083249,10.00757767,3433.1,3433.0,997.67547836]
[1641422083449,13.96443623,3433.1,3433.0,880.09147883]
[1641422083649,15.36363173,3433.1,3433.0,879.98737651]
[1641422083852,16.53778573,3433.1,3433.0,879.56364971]
[1641422084048,16.53778573,3433.1,3433.0,862.5682617]
[1641422084049,15.26119479,3433.1,3433.0,862.5682617]
[1641422084250,11.11650078,3433.1,3433.0,862.50271271]
[1641422084451,13.58429978,3433.1,3433.0,862.4427912]
[1641422084748,11.11970078,3433.1,3433.0,862.4427912]
[1641422085047,8.14439222,3433.1,3433.0,862.4427912]
[1641422085247,8.14759222,3433.1,3433.0,852.55402055]
[1641422085448,8.14519222,3433.1,3433.0,852.55402055]
[1641422085648,8.73559222,3433.1,3433.0,852.55402055]
[1641422085848,8.09970078,3433.1,3433.0,845.96165071]
[1641422086051,8.09170078,3433.1,3433.0,845.96165071]
[1641422086296,8.07010078,3433.1,3433.0,845.96165071]
[1641422086503,8.06690078,3433.1,3433.0,845.96165071]
[1641422086698,8.07250078,3433.1,3433.0,845.90365071]
[1641422086901,8.08210078,3433.1,3433.0,842.41837971]
[1641422087096,8.05970078,3433.1,3433.0,837.1451479]
[1641422087298,8.08050078,3433.1,3433.0,837.1451479]
[1641422087498,8.05810078,3433.1,3433.0,837.1451479]
[1641422087696,8.05544775,3433.1,3433.0,837.1451479]
[1641422087899,8.04664775,3433.1,3433.0,837.1451479]
[1641422088097,8.65704775,3433.1,3433.0,837.1451479]
[1641422088297,8.65704775,3433.1,3433.0,837.0871479]
[1641422088298,8.66264775,3433.1,3433.0,837.0871479]
[1641422088498,8.66024775,3433.1,3433.0,837.09990127]
[1641422088698,8.66024775,3433.1,3433.0,837.0871479]
[1641422088699,11.67464775,3433.1,3433.0,837.0871479]
[1641422088900,14.39148903,3433.1,3433.0,821.37464312]
[1641422089102,20.72850503,3433.1,3433.0,821.30909413]
[1641422089299,25.77541947,3433.1,3433.0,789.76413232]
[1641422089602,25.77541947,3433.1,3433.0,687.11855682]
[1641422089603,12.84700604,3433.1,3433.0,687.11855682]
[1641422089802,19.74579747,3433.1,3433.0,681.21768783]
[1641422090045,14.05131703,3433.1,3433.0,653.36751209]
[1641422090253,24.15662295,3433.1,3433.0,636.91170753]
[1641422090453,27.17197163,3433.1,3433.0,621.42793041]
[1641422090654,29.21109462,3433.1,3433.0,621.40793041]
[1641422090857,33.09443935,3433.1,3433.0,615.11978741]
[1641422091054,33.09443935,3433.1,3433.0,604.25548641]
[1641422091055,23.61273632,3433.1,3433.0,604.25548641]
[1641422091263,23.61273632,3433.1,3433.0,592.55586885]
[1641422091264,36.07944243,3433.1,3433.0,592.55586885]
[1641422091459,30.255216,3433.1,3433.0,584.00123185]
[1641422091660,41.80340555,3433.1,3433.0,571.83390431]
[1641422091856,55.95969998,3433.1,3433.0,553.25984532]
[1641422092056,54.54419355,3433.1,3433.0,543.34338295]
[1641422092258,94.382171,3433.1,3433.0,543.34338295]
[1641422092457,99.24766644,3433.1,3433.0,537.50821295]
[1641422092657,99.24766644,3433.1,3433.0,521.63196472]
[1641422092658,99.99695199,3433.1,3433.0,521.63196472]
[1641422092858,99.45533699,3433.1,3433.0,513.09515472]
[1641422093057,56.20698143,3433.1,3433.0,513.09515472]
[1641422093258,56.89277899,3433.1,3433.0,503.04916523]
[1641422093558,56.89277899,3433.1,3433.0,496.48409523]
[1641422093559,55.22095132,3433.1,3433.0,496.48409523]
[1641422093812,61.21440337,3433.1,3433.0,479.49478209]
[1641422094004,64.10598137,3433.1,3433.0,451.20898832]
[1641422094208,59.26717438,3433.1,3433.0,449.58903932]
[1641422094405,66.05661782,3433.1,3433.0,427.31610996]
[1641422094611,82.26931638,3433.1,3433.0,417.39348053]
[1641422094806,133.34081038,3433.1,3433.0,416.66391053]
[1641422095010,134.67629782,3433.1,3433.0,400.73630825]
[1641422095309,83.40278854,3433.1,3433.0,400.73630825]
[1641422095512,82.41260554,3433.1,3433.0,385.00262932]
[1641422095709,82.41260554,3433.1,3433.0,373.21894532]
[1641422095710,83.20289528,3433.1,3433.0,373.21894532]
[1641422095909,90.66971528,3433.1,3433.0,371.89883332]
[1641422096110,79.95307672,3433.1,3433.0,325.39099523]
[1641422096309,84.39421629,3433.1,3433.0,325.39099523]
[1641422096512,115.0549177,3433.1,3433.0,318.71337523]
[1641422096713,154.70321514,3433.1,3433.0,307.66524454]
[1641422096911,100.61601673,3433.1,3433.0,292.93775197]
[1641422097210,109.05456229,3433.1,3433.0,274.54710454]
[1641422097412,126.33837173,3433.1,3433.0,268.65121054]
[1641422097647,135.1664247,3433.1,3433.0,250.29760877]
[1641422097847,135.1664247,3433.1,3433.0,240.03563844]
[1641422097848,163.47582811,3433.1,3433.0,240.03563844]
[1641422098048,142.43947356,3433.1,3433.0,220.33362844]
[1641422098249,168.96220612,3433.1,3433.0,216.78531645]
[1641422098448,168.96220612,3433.1,3433.0,176.14089896]
[1641422098449,170.37726411,3433.1,3433.0,176.14089896]
[1641422098648,195.22849455,3433.1,3433.0,160.74668096]
[1641422098852,200.41517012,3433.1,3433.0,150.33692402]
[1641422099048,200.41517012,3433.1,3433.0,126.92040753]
[1641422099049,155.28621212,3433.1,3433.0,126.92040753]
[1641422099252,233.19277255,3433.1,3433.0,125.37615753]
[1641422099469,233.19277255,3433.1,3433.0,112.80545978]
[1641422099470,231.55877411,3433.1,3433.0,112.80545978]
[1641422099750,181.51875955,3433.1,3433.0,96.34310951]
[1641422099953,180.10774155,3433.1,3433.0,90.18386252]
[1641422100150,152.41861311,3433.1,3433.0,74.42891921]
[1641422100350,155.70739137,3433.1,3433.0,72.94704721]
[1641422100549,155.70739137,3433.1,3433.0,68.11478459]
[1641422100550,174.66846037,3433.1,3433.0,68.11478459]
[1641422100750,170.97269893,3433.1,3433.0,51.77109819]
[1641422100950,170.97269893,3433.1,3433.0,49.6895712]
[1641422100951,177.57597638,3433.1,3433.0,49.6895712]
[1641422101150,177.57597638,3433.1,3433.0,17.4722494]
[1641422101151,220.46867502,3433.1,3433.0,17.4722494]
[1641422101393,215.06386607,3433.1,3433.0,10.37742577]
[1641422101595,227.74910801,3433.1,3433.0,6.24262549]
[1641422101799,18.114,3432.3,3429.7,0.01210578]
[1641422101997,18.114,3432.3,3428.2,0.01267826]
[1641422101998,16.71,3428.4,3428.2,0.01267826]
[1641422102199,16.71,3428.4,3427.0,0.5569162]
[1641422102200,23.051887,3428.4,3427.0,0.5569162]
[1641422102400,12.287087,3428.3,3427.0,0.54423794]
[1641422102699,12.287087,3428.3,3427.1,0.03233736]
[1641422102700,6.341887,3428.2,3427.1,0.03233736]
[1641422102999,0.13447742,3429.1,3427.1,0.03233736]
[1641422103000,0.90947028,3428.4,3427.7,0.0129995]
[1641422103304,0.1144,3429.4,3427.8,0.0283584]
[1641422103502,5.8333,3429.3,3427.4,0.01257469]
[1641422103702,5.84182636,3429.3,3428.0,1.45865]
[1641422103901,5.84182636,3429.3,3427.5,0.50170527]
[1641422103902,0.00795793,3429.2,3427.5,0.50170527]
[1641422104102,5.8333,3429.1,3428.1,0.67941]
[1641422104311,5.84068951,3429.1,3427.7,1.45884]
[1641422104503,0.00682109,3429.0,3427.7,1.45884]
[1641422104702,5.8333,3428.9,3428.0,1.45869]
[1641422104906,5.83955266,3428.9,3428.0,1.45869]
[1641422105145,0.00568424,3428.8,3428.1,0.72939]
[1641422105349,0.00568424,3428.8,3427.8,8.35057942]
[1641422105350,5.8333,3428.7,3427.8,8.35057942]
[1641422105546,5.8333,3428.7,3427.8,8.27970287]
[1641422105547,5.83841582,3428.7,3427.8,8.27970287]
[1641422105746,5.83841582,3428.7,3427.7,1.45884]
[1641422105747,2.97415366,3428.7,3427.7,1.45884]
[1641422105948,2.97415366,3428.7,3427.9,0.00397896]
[1641422106153,2.97415366,3428.7,3427.8,0.00454739]
[1641422106450,2.92415366,3428.7,3428.1,1.37878]
[1641422106650,2.92415366,3428.7,3428.1,1.32078]
[1641422106853,2.92415366,3428.7,3428.2,0.00227369]
[1641422107650,0.0382729,3428.7,3428.2,1.15097369]
[1641422107851,0.0382729,3428.7,3428.2,0.00227369]
[1641422108051,0.0382729,3428.7,3428.1,0.54310527]
[1641422108250,0.0382729,3428.7,3428.3,0.00315906]
[1641422108251,0.00170527,3428.6,3428.3,0.00315906]
[1641422108651,0.00113685,3428.5,3428.3,0.00315906]
[1641422109506,0.00113685,3428.5,3428.4,0.72931]
[1641422109702,0.00113685,3428.5,3428.3,1.15183906]
[1641422109906,0.00113685,3428.5,3428.4,0.00273267]
[1641422111311,0.1152,3429.6,3428.4,0.00273267]
[1641422111510,0.1224,3429.6,3428.4,0.00273267]
[1641422111712,1.0,3429.4,3428.4,0.00273267]
[1641422112112,0.00454739,3429.3,3428.5,0.72927]
[1641422112543,0.00397896,3429.2,3428.5,0.72927]
[1641422112946,0.00341054,3429.1,3428.5,0.72927]
[1641422113148,0.112,3430.2,3428.5,0.72927]
[1641422113149,1.97147249,3430.8,3429.0,0.01288939]
[1641422113357,0.1168,3430.7,3429.0,1.97119939]
[1641422113550,0.1168,3430.7,3429.0,1.47119939]
[1641422113551,0.00568423,3430.1,3429.0,1.47119939]
[1641422113752,0.00568423,3430.1,3429.0,0.01288939]
[1641422113950,0.00511581,3430.0,3429.0,0.01288939]
[1641422114351,0.00454739,3429.9,3429.0,0.01288939]
[1641422114756,0.00397896,3429.8,3429.0,0.01288939]
[1641422115251,5.83531054,3429.7,3429.0,0.01288939]
[1641422115452,5.83531054,3429.7,3429.2,0.72908]
[1641422115453,2.94869933,3429.7,3429.2,0.72908]
[1641422115655,2.94869933,3429.7,3429.2,1.45819]
[1641422115656,0.03568906,3429.7,3429.2,1.45819]
[1641422115954,0.01242172,3431.7,3429.3,0.00227369]
[1641422116153,0.01242172,3431.7,3429.9,1.45804]
[1641422116395,0.1336,3431.8,3429.9,1.45804]
[1641422116396,0.00852635,3431.2,3429.9,1.45804]
[1641422116795,5.83795793,3431.1,3429.9,1.45804]
[1641422117199,5.73738951,3431.1,3429.9,1.45804]
[1641422117402,5.73738951,3431.1,3430.0,0.00568424]
[1641422117600,5.73161264,3431.1,3430.0,0.00568424]
[1641422117799,2.83250896,3431.1,3430.3,0.72901]
[1641422118199,2.83250896,3431.1,3430.4,0.00341055]
[1641422118799,0.80343463,3431.1,3430.5,1.46066321]
[1641422119001,2.0,3432.2,3430.6,0.01225278]
[1641422119201,2.0,3432.2,3430.5,0.89095969]
[1641422119401,0.90825366,3432.7,3430.6,8.12770406]
[1641422119603,0.0022737,3432.1,3432.0,0.01280272]
[1641422119802,6.22851649,3433.1,3432.3,1.45698]
[1641422120085,0.40100649,3433.1,3432.3,1.45698]
[1641422120261,2.66295969,3433.9,3432.4,0.72849]
[1641422120458,1.65007424,3433.9,3432.4,0.50341054]
[1641422120657,0.00400739,3433.8,3432.5,0.00284211]
[1641422121062,0.00400739,3433.8,3433.0,1.4567]
[1641422121258,0.00341054,3434.4,3433.1,0.72835]
[1641422121468,4.04209013,3435.0,3433.1,0.00397896]
[1641422121658,4.04209013,3435.0,3433.2,0.00341054]
[1641422121659,2.57209013,3435.0,3433.2,0.00341054]
[1641422121859,2.57209013,3435.0,3433.2,0.7127]
[1641422121860,2.47209013,3435.0,3433.2,0.7127]
[1641422122058,2.0,3435.6,3433.2,0.7127]
[1641422122059,0.1219,3434.9,3434.1,1.4561]
[1641422122463,0.00227369,3435.2,3434.2,0.73146054]
[1641422122662,5.8229,3435.1,3434.2,0.73146054]
[1641422122858,5.8229,3435.1,3434.3,0.00284212]
[1641422122859,0.00157527,3435.1,3434.3,0.00284212]
[1641422123058,0.00113684,3435.0,3434.3,0.00284212]
[1641422123258,0.00100684,3435.0,3434.3,0.00297212]
[1641422123459,10.12770406,3437.1,3434.6,2.91164]
[1641422123663,10.12770406,3437.1,3435.3,0.1567]
[1641422123664,2.0,3437.1,3435.3,0.1567]
[1641422123899,0.00397897,3436.8,3435.3,1.276]
[1641422124102,0.1128,3438.3,3435.4,8.14429756]
[1641422124103,0.1144,3438.3,3435.4,8.14429756]
[1641422124304,0.112,3438.3,3436.1,0.01244519]
[1641422124502,0.1112,3438.3,3436.7,0.7274661]
[1641422124801,69.7827204,3438.4,3436.9,1.4551]
[1641422124802,69.3415204,3438.4,3436.9,1.4551]
[1641422125003,5.05261267,3438.4,3437.0,8.12770406]
[1641422125206,2.0,3439.5,3437.0,8.14736646]
[1641422125403,2.0,3439.5,3438.1,0.72726]
[1641422125603,2.0,3439.5,3438.1,1.0263]
[1641422125604,5.816,3439.4,3438.1,1.0263]
[1641422125801,5.816,3439.4,3438.3,2.18139]
[1641422126006,5.82111582,3439.4,3438.3,2.18139]
[1641422126204,0.00507582,3439.4,3438.3,2.18139]
[1641422126404,0.00450739,3439.3,3438.3,2.18139]
[1641422126702,0.01218661,3440.5,3438.7,0.72716]
[1641422126908,0.01218661,3440.5,3438.8,2.1807441]
[1641422127106,0.01218661,3440.5,3438.9,10.30854406]
[1641422127107,0.00113685,3439.2,3438.9,10.30854406]
[1641422127305,1.0,3440.8,3438.9,2.54804]
[1641422127595,1.0,3440.8,3439.0,8.12884091]
[1641422127786,2.0,3441.9,3440.6,0.726646]
[1641422127984,1.0,3442.2,3441.2,0.72663]
[1641422128183,0.06554899,3441.8,3441.6,0.72656]
[1641422128487,0.0791632,3442.1,3441.6,1e-08]
[1641422128684,0.0291632,3442.1,3441.6,1e-08]